[Event "Titled Tuesday Blitz June 6 Early 2023"]
[White "Domingo Nunez, Ruben"]
[Black "Sovetbekova, Nurai"]
[WhiteFideId "22245570"]
[BlackFideId "13801910"]
[WhiteElo "2404"]
[BlackElo "1857"]
[Result "1-0"]
[Round "1"]
[TimeControl "180+2"]
[Date "2023.06.06"]
[WhiteClock "0:01:06"]
[BlackClock "0:00:01"]
[Board "114"]

1. c4 {[%clk 0:02:50]}  e6 {[%clk 0:02:59]} 2. g3 {[%clk 0:02:49]}  d5 {[%clk 0:02:56]} 3. Bg2 {[%clk 0:02:50]}  Nf6 {[%clk 0:02:55]} 4. Nf3 {[%clk 0:02:49]}  dxc4 {[%clk 0:02:54]} 5. Qa4+ {[%clk 0:02:48]}  Bd7 {[%clk 0:02:54]} 6. Qxc4 {[%clk 0:02:49]}  c5 {[%clk 0:02:54]} 7. a4 {[%clk 0:02:48]}  Nc6 {[%clk 0:02:46]} 8. O-O {[%clk 0:02:48]}  Be7 {[%clk 0:02:45]} 9. d3 {[%clk 0:02:47]}  O-O {[%clk 0:02:45]} 10. Be3 {[%clk 0:02:47]}  Rc8 {[%clk 0:02:36]} 11. Nc3 {[%clk 0:02:34]}  b6 {[%clk 0:02:11]} 12. Rfc1 {[%clk 0:02:32]}  Na5 {[%clk 0:02:10]} 13. Qa2 {[%clk 0:02:31]}  Bc6 {[%clk 0:02:10]} 14. Nb5 {[%clk 0:02:24]}  Bd5 {[%clk 0:02:05]} 15. Qb1 {[%clk 0:02:17]}  Nb3 {[%clk 0:02:02]} 16. Nxa7 {[%clk 0:02:14]}  Ra8 {[%clk 0:02:01]} 17. Nb5 {[%clk 0:02:15]}  Nxc1 {[%clk 0:01:47]} 18. Qxc1 {[%clk 0:02:14]}  Bc6 {[%clk 0:01:36]} 19. Nc3 {[%clk 0:02:14]}  Bd6 {[%clk 0:01:32]} 20. Qc2 {[%clk 0:02:12]}  Qd7 {[%clk 0:01:31]} 21. b3 {[%clk 0:02:12]}  Nd5 {[%clk 0:01:30]} 22. Ne4 {[%clk 0:02:11]}  Nb4 {[%clk 0:01:26]} 23. Qb2 {[%clk 0:02:08]}  Be7 {[%clk 0:01:22]} 24. Ne5 {[%clk 0:02:06]}  Qc8 {[%clk 0:01:19]} 25. Bd2 {[%clk 0:01:50]}  Nd5 {[%clk 0:01:12]} 26. Nc4 {[%clk 0:01:43]}  Nf6 {[%clk 0:01:08]} 27. Nxb6 {[%clk 0:01:42]}  Qb7 {[%clk 0:01:03]} 28. Nxa8 {[%clk 0:01:33]}  Nxe4 {[%clk 0:00:59]} 29. Bxe4 {[%clk 0:01:25]}  Bxe4 {[%clk 0:00:59]} 30. dxe4 {[%clk 0:01:26]}  Rxa8 {[%clk 0:00:53]} 31. Qc2 {[%clk 0:01:20]}  Bf6 {[%clk 0:00:40]} 32. Ra2 {[%clk 0:01:17]}  Rd8 {[%clk 0:00:32]} 33. a5 {[%clk 0:01:16]}  Qa6 {[%clk 0:00:30]} 34. Qc4 {[%clk 0:01:16]}  Qa8 {[%clk 0:00:26]} 35. Be3 {[%clk 0:01:12]}  Rd1+ {[%clk 0:00:19]} 36. Kg2 {[%clk 0:01:12]}  Bd4 {[%clk 0:00:18]} 37. Bxd4 {[%clk 0:01:07]}  Rxd4 {[%clk 0:00:18]} 38. Qxc5 {[%clk 0:01:08]}  Rxe4 {[%clk 0:00:16]} 39. f3 {[%clk 0:01:08]}  f5 {[%clk 0:00:05]} 40. a6 {[%clk 0:01:06]}  f4 {[%clk 0:00:02]} 41. a7 {[%clk 0:01:05]}  fxg3 {[%clk 0:00:02]} 42. hxg3 {[%clk 0:01:06]}  g5 {[%clk 0:00:01]} 43. Qxg5+ {[%clk 0:01:04]}  Kh8 {[%clk 0:00:01]} 44. Qf6+ {[%clk 0:01:04]}  Kg8 {[%clk 0:00:02]} 45. fxe4 {[%clk 0:01:05]}  Qxe4+ {[%clk 0:00:01]} 46. Qf3 {[%clk 0:01:06]} 1-0


[Site "https://www.chess.com"]

[Event "Titled Tuesday Blitz June 6 Early 2023"]
[White "Jeet, Jain"]
[Black "Polanco Nunez, Yoel Estarling"]
[WhiteFideId "5073022"]
[BlackFideId "6401783"]
[WhiteElo "2067"]
[BlackElo "2132"]
[Result "1-0"]
[Round "1"]
[TimeControl "180+2"]
[Date "2023.06.06"]
[WhiteClock "0:01:15"]
[BlackClock "0:00:54"]
[Board "120"]

1. d4 {[%clk 0:02:55]}  Nf6 {[%clk 0:02:59]} 2. Nf3 {[%clk 0:02:55]}  d5 {[%clk 0:02:59]} 3. e3 {[%clk 0:02:54]}  Bf5 {[%clk 0:02:57]} 4. Be2 {[%clk 0:02:52]}  e6 {[%clk 0:02:56]} 5. O-O {[%clk 0:02:53]}  h6 {[%clk 0:02:56]} 6. b3 {[%clk 0:02:53]}  Bd6 {[%clk 0:02:50]} 7. c4 {[%clk 0:02:52]}  O-O {[%clk 0:02:45]} 8. Nc3 {[%clk 0:02:50]}  c6 {[%clk 0:02:43]} 9. Ne5 {[%clk 0:02:47]}  Nbd7 {[%clk 0:02:41]} 10. f4 {[%clk 0:02:47]}  Ne4 {[%clk 0:02:40]} 11. Bb2 {[%clk 0:02:46]}  Nxc3 {[%clk 0:02:39]} 12. Bxc3 {[%clk 0:02:47]}  Nf6 {[%clk 0:02:39]} 13. g4 {[%clk 0:02:45]}  Be4 {[%clk 0:02:35]} 14. Be1 {[%clk 0:02:37]}  Nd7 {[%clk 0:02:32]} 15. Bg3 {[%clk 0:02:33]}  Nxe5 {[%clk 0:02:30]} 16. fxe5 {[%clk 0:02:31]}  Be7 {[%clk 0:02:30]} 17. Bd3 {[%clk 0:02:27]}  Bg5 {[%clk 0:02:30]} 18. Qe2 {[%clk 0:02:24]}  Bxd3 {[%clk 0:02:26]} 19. Qxd3 {[%clk 0:02:25]}  Rc8 {[%clk 0:02:10]} 20. Kg2 {[%clk 0:02:18]}  c5 {[%clk 0:01:59]} 21. Rh1 {[%clk 0:02:17]}  dxc4 {[%clk 0:01:52]} 22. bxc4 {[%clk 0:02:16]}  cxd4 {[%clk 0:01:52]} 23. exd4 {[%clk 0:02:16]}  b5 {[%clk 0:01:51]} 24. cxb5 {[%clk 0:02:03]}  Qd5+ {[%clk 0:01:51]} 25. Kh3 {[%clk 0:02:00]}  Rc4 {[%clk 0:01:47]} 26. Rhd1 {[%clk 0:01:49]}  Rfc8 {[%clk 0:01:46]} 27. a4 {[%clk 0:01:45]}  Rc3 {[%clk 0:01:44]} 28. Qe2 {[%clk 0:01:45]}  Rc2 {[%clk 0:01:40]} 29. Qf1 {[%clk 0:01:37]}  Qe4 {[%clk 0:01:31]} 30. Ra3 {[%clk 0:01:35]}  g6 {[%clk 0:01:21]} 31. Qf3 {[%clk 0:01:32]}  Qd5 {[%clk 0:01:17]} 32. Qxd5 {[%clk 0:01:30]}  exd5 {[%clk 0:01:16]} 33. Rb1 {[%clk 0:01:22]}  Rc1 {[%clk 0:01:01]} 34. Rxc1 {[%clk 0:01:20]}  Rxc1 {[%clk 0:01:02]} 35. a5 {[%clk 0:01:15]}  Rb1 {[%clk 0:01:02]} 36. b6 {[%clk 0:01:15]}  axb6 {[%clk 0:00:54]} 37. a6 {[%clk 0:01:15]} 1-0


[Site "https://www.chess.com"]

[Event "Titled Tuesday Blitz June 6 Early 2023"]
[White "Hua, Lefong"]
[Black "Jodorcovsky Werjivker, Paulo"]
[WhiteFideId "2602253"]
[BlackFideId "3700305"]
[WhiteElo "2642"]
[BlackElo "2120"]
[Result "1-0"]
[Round "1"]
[TimeControl "180+2"]
[Date "2023.06.06"]
[WhiteClock "0:00:27"]
[BlackClock "0:00:14"]
[Board "122"]

1. d4 {[%clk 0:03:00]}  f5 {[%clk 0:02:53]} 2. Nc3 {[%clk 0:03:00]}  Nf6 {[%clk 0:02:53]} 3. Bg5 {[%clk 0:03:00]}  e6 {[%clk 0:02:53]} 4. e4 {[%clk 0:03:01]}  fxe4 {[%clk 0:02:52]} 5. Nxe4 {[%clk 0:03:01]}  Be7 {[%clk 0:02:53]} 6. Bxf6 {[%clk 0:03:01]}  Bxf6 {[%clk 0:02:53]} 7. Qh5+ {[%clk 0:03:02]}  g6 {[%clk 0:02:53]} 8. Qh6 {[%clk 0:03:02]}  Kf7 {[%clk 0:02:51]} 9. Nxf6 {[%clk 0:02:56]}  Qxf6 {[%clk 0:02:52]} 10. Nf3 {[%clk 0:02:55]}  d6 {[%clk 0:02:46]} 11. Bd3 {[%clk 0:02:49]}  Nc6 {[%clk 0:02:33]} 12. c3 {[%clk 0:02:47]}  Ne7 {[%clk 0:02:29]} 13. O-O-O {[%clk 0:02:28]}  Ng8 {[%clk 0:02:22]} 14. Qe3 {[%clk 0:02:16]}  h6 {[%clk 0:02:20]} 15. h4 {[%clk 0:02:14]}  Ne7 {[%clk 0:02:18]} 16. g4 {[%clk 0:02:11]}  Nd5 {[%clk 0:02:15]} 17. Qe4 {[%clk 0:01:49]}  Qf4+ {[%clk 0:02:14]} 18. Kc2 {[%clk 0:01:48]}  Qxe4 {[%clk 0:02:12]} 19. Bxe4 {[%clk 0:01:49]}  Nf6 {[%clk 0:02:11]} 20. Bd3 {[%clk 0:01:39]}  Nxg4 {[%clk 0:02:08]} 21. Rhg1 {[%clk 0:01:39]}  e5 {[%clk 0:02:08]} 22. dxe5 {[%clk 0:01:33]}  Nxe5 {[%clk 0:02:01]} 23. Nxe5+ {[%clk 0:01:33]}  dxe5 {[%clk 0:02:00]} 24. Rxg6 {[%clk 0:01:25]}  Be6 {[%clk 0:01:21]} 25. Re1 {[%clk 0:01:24]}  Rad8 {[%clk 0:01:19]} 26. Rxe5 {[%clk 0:01:19]}  Rxd3 {[%clk 0:01:13]} 27. Rexe6 {[%clk 0:01:10]}  Rf3 {[%clk 0:01:09]} 28. Rxh6 {[%clk 0:01:07]}  Rxh6 {[%clk 0:01:06]} 29. Rxh6 {[%clk 0:01:08]}  Rxf2+ {[%clk 0:01:07]} 30. Kb3 {[%clk 0:01:07]}  Kg7 {[%clk 0:01:08]} 31. Rh5 {[%clk 0:01:06]}  Rf4 {[%clk 0:01:05]} 32. Rd5 {[%clk 0:01:01]}  Rf7 {[%clk 0:00:58]} 33. h5 {[%clk 0:01:00]}  Kh6 {[%clk 0:00:56]} 34. a4 {[%clk 0:00:55]}  Rf6 {[%clk 0:00:52]} 35. Re5 {[%clk 0:00:53]}  Rb6+ {[%clk 0:00:50]} 36. Kc2 {[%clk 0:00:52]}  Rf6 {[%clk 0:00:39]} 37. b4 {[%clk 0:00:49]}  a6 {[%clk 0:00:38]} 38. Kb3 {[%clk 0:00:47]}  b6 {[%clk 0:00:36]} 39. a5 {[%clk 0:00:40]}  bxa5 {[%clk 0:00:35]} 40. Rxa5 {[%clk 0:00:41]}  Rb6 {[%clk 0:00:33]} 41. Rc5 {[%clk 0:00:41]}  Rd6 {[%clk 0:00:22]} 42. Ka4 {[%clk 0:00:30]}  Rb6 {[%clk 0:00:15]} 43. Ka5 {[%clk 0:00:27]}  Rb7 {[%clk 0:00:14]} 1-0


[Site "https://www.chess.com"]

[Event "Titled Tuesday Blitz June 6 Early 2023"]
[White "Goroshkov, Maksym"]
[Black "Bogaudinov, Rushan"]
[WhiteFideId "14142716"]
[BlackFideId "4129288"]
[WhiteElo "2322"]
[BlackElo "1967"]
[Result "1-0"]
[Round "1"]
[TimeControl "180+2"]
[Date "2023.06.06"]
[WhiteClock "0:01:40"]
[BlackClock "0:00:13"]
[Board "126"]

1. e4 {[%clk 0:02:59]}  c5 {[%clk 0:02:55]} 2. d4 {[%clk 0:02:59]}  cxd4 {[%clk 0:02:54]} 3. c3 {[%clk 0:02:59]}  d3 {[%clk 0:02:54]} 4. Bxd3 {[%clk 0:02:59]}  Nc6 {[%clk 0:02:53]} 5. Nf3 {[%clk 0:02:58]}  d6 {[%clk 0:02:53]} 6. O-O {[%clk 0:02:56]}  Nf6 {[%clk 0:02:53]} 7. Na3 {[%clk 0:02:56]}  e6 {[%clk 0:02:50]} 8. Qe2 {[%clk 0:02:49]}  Be7 {[%clk 0:02:49]} 9. Rd1 {[%clk 0:02:48]}  Qc7 {[%clk 0:02:45]} 10. Bf4 {[%clk 0:02:47]}  a6 {[%clk 0:02:34]} 11. e5 {[%clk 0:02:45]}  dxe5 {[%clk 0:02:30]} 12. Nxe5 {[%clk 0:02:46]}  Nxe5 {[%clk 0:02:28]} 13. Bxe5 {[%clk 0:02:45]}  Qc6 {[%clk 0:02:27]} 14. Nb5 {[%clk 0:02:32]}  O-O {[%clk 0:02:19]} 15. Nd4 {[%clk 0:02:32]}  Qe8 {[%clk 0:02:07]} 16. a4 {[%clk 0:02:26]}  Nd7 {[%clk 0:01:45]} 17. Bg3 {[%clk 0:02:21]}  Nc5 {[%clk 0:01:36]} 18. Bc2 {[%clk 0:02:21]}  a5 {[%clk 0:01:10]} 19. b4 {[%clk 0:02:15]}  axb4 {[%clk 0:01:09]} 20. cxb4 {[%clk 0:02:16]}  Na6 {[%clk 0:01:09]} 21. b5 {[%clk 0:02:05]}  Nb4 {[%clk 0:01:05]} 22. Be4 {[%clk 0:02:06]}  Nd5 {[%clk 0:00:55]} 23. Bxd5 {[%clk 0:01:58]}  exd5 {[%clk 0:00:56]} 24. Re1 {[%clk 0:01:59]}  Be6 {[%clk 0:00:37]} 25. Nxe6 {[%clk 0:01:58]}  Bf6 {[%clk 0:00:37]} 26. Nxf8 {[%clk 0:01:50]}  Qxe2 {[%clk 0:00:36]} 27. Rxe2 {[%clk 0:01:50]}  Bxa1 {[%clk 0:00:36]} 28. Nd7 {[%clk 0:01:50]}  h5 {[%clk 0:00:34]} 29. Nb6 {[%clk 0:01:47]}  Rd8 {[%clk 0:00:26]} 30. Bc7 {[%clk 0:01:46]}  Rf8 {[%clk 0:00:23]} 31. Nxd5 {[%clk 0:01:44]}  f6 {[%clk 0:00:19]} 32. a5 {[%clk 0:01:43]}  Kh7 {[%clk 0:00:18]} 33. a6 {[%clk 0:01:41]}  bxa6 {[%clk 0:00:19]} 34. bxa6 {[%clk 0:01:41]}  Ra8 {[%clk 0:00:19]} 35. Ra2 {[%clk 0:01:40]}  Bd4 {[%clk 0:00:18]} 36. g3 {[%clk 0:01:39]}  Kg6 {[%clk 0:00:17]} 37. Bb6 {[%clk 0:01:39]}  Be5 {[%clk 0:00:13]} 38. a7 {[%clk 0:01:39]}  Kf7 {[%clk 0:00:13]} 39. Nc7 {[%clk 0:01:38]}  Bxc7 {[%clk 0:00:13]} 40. Bxc7 {[%clk 0:01:39]}  Ke6 {[%clk 0:00:13]} 41. Bb8 {[%clk 0:01:40]} 1-0


[Site "https://www.chess.com"]

[Event "Titled Tuesday Blitz June 6 Early 2023"]
[White "Senft, Sean"]
[Black "Melikyan, Gnel"]
[WhiteFideId "2044960"]
[BlackFideId "54109990"]
[WhiteElo "1989"]
[BlackElo "2138"]
[Result "0-1"]
[Round "1"]
[TimeControl "180+2"]
[Date "2023.06.06"]
[WhiteClock "0:02:14"]
[BlackClock "0:01:33"]
[Board "127"]

1. d4 {[%clk 0:03:00]}  Nf6 {[%clk 0:02:58]} 2. c4 {[%clk 0:03:00]}  g6 {[%clk 0:02:58]} 3. Nc3 {[%clk 0:03:00]}  Bg7 {[%clk 0:02:59]} 4. e4 {[%clk 0:03:00]}  d6 {[%clk 0:03:00]} 5. f4 {[%clk 0:03:00]}  O-O {[%clk 0:02:59]} 6. Nf3 {[%clk 0:03:01]}  c5 {[%clk 0:03:00]} 7. d5 {[%clk 0:03:01]}  e6 {[%clk 0:03:00]} 8. Be2 {[%clk 0:03:02]}  exd5 {[%clk 0:03:01]} 9. exd5 {[%clk 0:03:03]}  Re8 {[%clk 0:03:01]} 10. O-O {[%clk 0:03:03]}  Ne4 {[%clk 0:03:00]} 11. Nxe4 {[%clk 0:03:03]}  Rxe4 {[%clk 0:03:01]} 12. Bd3 {[%clk 0:03:04]}  Re8 {[%clk 0:03:01]} 13. f5 {[%clk 0:03:05]}  Nd7 {[%clk 0:02:59]} 14. Bg5 {[%clk 0:03:05]}  Qb6 {[%clk 0:02:46]} 15. Qd2 {[%clk 0:03:00]}  Qxb2 {[%clk 0:02:39]} 16. Qf4 {[%clk 0:02:45]}  Ne5 {[%clk 0:01:58]} 17. Nxe5 {[%clk 0:02:39]}  Bxe5 {[%clk 0:01:53]} 18. Qh4 {[%clk 0:02:36]}  Qd4+ {[%clk 0:01:53]} 19. Qxd4 {[%clk 0:02:27]}  Bxd4+ {[%clk 0:01:53]} 20. Kh1 {[%clk 0:02:28]}  Bxa1 {[%clk 0:01:53]} 21. Rxa1 {[%clk 0:02:29]}  Bxf5 {[%clk 0:01:53]} 22. Bxf5 {[%clk 0:02:28]}  gxf5 {[%clk 0:01:53]} 23. h3 {[%clk 0:02:25]}  Kg7 {[%clk 0:01:52]} 24. a4 {[%clk 0:02:22]}  Re4 {[%clk 0:01:52]} 25. a5 {[%clk 0:02:21]}  Rxc4 {[%clk 0:01:51]} 26. Be7 {[%clk 0:02:19]}  Rd4 {[%clk 0:01:48]} 27. Bxd6 {[%clk 0:02:18]}  Rxd5 {[%clk 0:01:49]} 28. Bf4 {[%clk 0:02:18]}  Re8 {[%clk 0:01:46]} 29. Rb1 {[%clk 0:02:18]}  Re4 {[%clk 0:01:44]} 30. Bg3 {[%clk 0:02:15]}  f4 {[%clk 0:01:43]} 31. Bh4 {[%clk 0:02:15]}  f3 {[%clk 0:01:41]} 32. Bg3 {[%clk 0:02:13]}  fxg2+ {[%clk 0:01:40]} 33. Kxg2 {[%clk 0:02:14]}  Rb4 {[%clk 0:01:33]} 0-1


[Site "https://www.chess.com"]

[Event "Titled Tuesday Blitz June 6 Early 2023"]
[White "Peatman, Carter"]
[Black "Mendez Fortes, Eduardo Jesus"]
[WhiteFideId "2096480"]
[BlackFideId "3502376"]
[WhiteElo "2003"]
[BlackElo "2307"]
[Result "1/2-1/2"]
[Round "1"]
[TimeControl "180+2"]
[Date "2023.06.06"]
[WhiteClock "0:00:06"]
[BlackClock "0:01:48"]
[Board "129"]

1. d4 {[%clk 0:02:58]}  Nf6 {[%clk 0:02:59]} 2. Bf4 {[%clk 0:02:58]}  d5 {[%clk 0:02:59]} 3. e3 {[%clk 0:02:59]}  c5 {[%clk 0:02:59]} 4. c3 {[%clk 0:02:58]}  Nc6 {[%clk 0:02:59]} 5. Nd2 {[%clk 0:02:57]}  Qb6 {[%clk 0:02:55]} 6. Qb3 {[%clk 0:02:56]}  c4 {[%clk 0:02:55]} 7. Qc2 {[%clk 0:02:56]}  Bg4 {[%clk 0:02:55]} 8. e4 {[%clk 0:02:49]}  e6 {[%clk 0:02:54]} 9. Be2 {[%clk 0:02:28]}  Bxe2 {[%clk 0:02:52]} 10. Nxe2 {[%clk 0:02:29]}  Nxe4 {[%clk 0:02:47]} 11. Nxe4 {[%clk 0:02:24]}  dxe4 {[%clk 0:02:47]} 12. O-O {[%clk 0:02:14]}  Be7 {[%clk 0:02:45]} 13. Ng3 {[%clk 0:02:12]}  f5 {[%clk 0:02:44]} 14. f3 {[%clk 0:02:12]}  exf3 {[%clk 0:02:37]} 15. Rxf3 {[%clk 0:02:10]}  e5 {[%clk 0:02:37]} 16. Be3 {[%clk 0:01:54]}  f4 {[%clk 0:02:35]} 17. Nf5 {[%clk 0:01:51]}  fxe3 {[%clk 0:02:32]} 18. Nxe7 {[%clk 0:01:47]}  Nxe7 {[%clk 0:02:32]} 19. Qa4+ {[%clk 0:01:12]}  Qc6 {[%clk 0:02:30]} 20. Qa5 {[%clk 0:01:13]}  exd4 {[%clk 0:02:23]} 21. cxd4 {[%clk 0:01:08]}  Qd5 {[%clk 0:02:13]} 22. Qb4 {[%clk 0:00:57]}  Nf5 {[%clk 0:02:01]} 23. Raf1 {[%clk 0:00:49]}  e2 {[%clk 0:02:01]} 24. R1f2 {[%clk 0:00:34]}  Nxd4 {[%clk 0:02:01]} 25. Re3+ {[%clk 0:00:32]}  Kd7 {[%clk 0:02:01]} 26. Qe7+ {[%clk 0:00:24]}  Kc6 {[%clk 0:02:00]} 27. Rf7 {[%clk 0:00:22]}  Kb6 {[%clk 0:01:49]} 28. Qc7+ {[%clk 0:00:20]}  Ka6 {[%clk 0:01:49]} 29. Ra3+ {[%clk 0:00:20]}  Kb5 {[%clk 0:01:48]} 30. Qa5+ {[%clk 0:00:11]}  Kc6 {[%clk 0:01:48]} 31. Qc7+ {[%clk 0:00:12]}  Kb5 {[%clk 0:01:48]} 32. Qa5+ {[%clk 0:00:05]}  Kc6 {[%clk 0:01:48]} 33. Qc7+ {[%clk 0:00:06]}  Kb5 {[%clk 0:01:48]} 1/2-1/2


[Site "https://www.chess.com"]

[Event "Titled Tuesday Blitz June 6 Early 2023"]
[White "Manukyan, Sargis A."]
[Black "Mihailidis, Anastasios"]
[WhiteFideId "13303970"]
[BlackFideId "4205588"]
[WhiteElo "2187"]
[BlackElo "2312"]
[Result "0-1"]
[Round "1"]
[TimeControl "180+2"]
[Date "2023.06.06"]
[WhiteClock "0:00:18"]
[BlackClock "0:01:13"]
[Board "130"]

1. d4 {[%clk 0:02:59]}  d5 {[%clk 0:02:59]} 2. c4 {[%clk 0:02:59]}  e6 {[%clk 0:02:59]} 3. Nc3 {[%clk 0:02:52]}  Nf6 {[%clk 0:02:58]} 4. Nf3 {[%clk 0:02:49]}  Be7 {[%clk 0:02:59]} 5. Bg5 {[%clk 0:02:49]}  h6 {[%clk 0:02:59]} 6. Bf4 {[%clk 0:02:41]}  O-O {[%clk 0:02:58]} 7. e3 {[%clk 0:02:41]}  Nbd7 {[%clk 0:02:57]} 8. cxd5 {[%clk 0:02:40]}  Nxd5 {[%clk 0:02:56]} 9. Nxd5 {[%clk 0:02:39]}  exd5 {[%clk 0:02:56]} 10. Bd3 {[%clk 0:02:40]}  c6 {[%clk 0:02:56]} 11. O-O {[%clk 0:02:40]}  Nf6 {[%clk 0:02:56]} 12. Qc2 {[%clk 0:02:40]}  Bd6 {[%clk 0:02:56]} 13. Ne5 {[%clk 0:02:40]}  Qc7 {[%clk 0:02:51]} 14. h3 {[%clk 0:02:39]}  Nd7 {[%clk 0:02:51]} 15. Nxd7 {[%clk 0:02:22]}  Bxd7 {[%clk 0:02:52]} 16. Bxd6 {[%clk 0:02:22]}  Qxd6 {[%clk 0:02:53]} 17. Rab1 {[%clk 0:02:22]}  a5 {[%clk 0:02:50]} 18. a3 {[%clk 0:02:18]}  Rfe8 {[%clk 0:02:44]} 19. b4 {[%clk 0:02:17]}  b5 {[%clk 0:02:45]} 20. Rfc1 {[%clk 0:02:14]}  axb4 {[%clk 0:02:44]} 21. axb4 {[%clk 0:02:12]}  Ra3 {[%clk 0:02:41]} 22. Bf5 {[%clk 0:02:10]}  Bxf5 {[%clk 0:02:35]} 23. Qxf5 {[%clk 0:02:11]}  Rea8 {[%clk 0:02:33]} 24. g4 {[%clk 0:02:05]}  g6 {[%clk 0:02:31]} 25. Qc2 {[%clk 0:01:56]}  R8a6 {[%clk 0:02:31]} 26. Kg2 {[%clk 0:01:57]}  Qf6 {[%clk 0:02:28]} 27. Rb3 {[%clk 0:01:56]}  Ra2 {[%clk 0:02:26]} 28. Rb2 {[%clk 0:01:56]}  R2a3 {[%clk 0:02:23]} 29. Qd2 {[%clk 0:01:49]}  Qe6 {[%clk 0:02:21]} 30. Rbc2 {[%clk 0:01:49]}  Qe4+ {[%clk 0:02:08]} 31. Kg3 {[%clk 0:01:49]}  Qe6 {[%clk 0:02:01]} 32. Rc3 {[%clk 0:01:48]}  Rxc3 {[%clk 0:02:00]} 33. Qxc3 {[%clk 0:01:48]}  Qd6+ {[%clk 0:02:00]} 34. Kg2 {[%clk 0:01:48]}  Kg7 {[%clk 0:01:59]} 35. Qc5 {[%clk 0:01:46]}  Qxc5 {[%clk 0:01:58]} 36. Rxc5 {[%clk 0:01:46]}  Kf6 {[%clk 0:01:58]} 37. Rc1 {[%clk 0:01:40]}  Ke6 {[%clk 0:01:58]} 38. Kg3 {[%clk 0:01:39]}  Kd6 {[%clk 0:01:58]} 39. h4 {[%clk 0:01:36]}  Ra2 {[%clk 0:01:58]} 40. f3 {[%clk 0:01:35]}  Rb2 {[%clk 0:01:56]} 41. e4 {[%clk 0:01:32]}  dxe4 {[%clk 0:01:52]} 42. fxe4 {[%clk 0:01:30]}  Rxb4 {[%clk 0:01:53]} 43. Rd1 {[%clk 0:01:27]}  Rc4 {[%clk 0:01:51]} 44. Kf4 {[%clk 0:01:27]}  b4 {[%clk 0:01:51]} 45. h5 {[%clk 0:01:21]}  b3 {[%clk 0:01:45]} 46. Rb1 {[%clk 0:01:12]}  Rc3 {[%clk 0:01:42]} 47. g5 {[%clk 0:01:03]}  hxg5+ {[%clk 0:01:37]} 48. Kxg5 {[%clk 0:01:04]}  gxh5 {[%clk 0:01:38]} 49. Kxh5 {[%clk 0:01:05]}  Re3 {[%clk 0:01:35]} 50. Kg5 {[%clk 0:00:43]}  Rxe4 {[%clk 0:01:33]} 51. Rxb3 {[%clk 0:00:44]}  Rxd4 {[%clk 0:01:33]} 52. Rf3 {[%clk 0:00:45]}  c5 {[%clk 0:01:29]} 53. Rxf7 {[%clk 0:00:44]}  c4 {[%clk 0:01:29]} 54. Rf8 {[%clk 0:00:39]}  Kd5 {[%clk 0:01:27]} 55. Kf5 {[%clk 0:00:32]}  c3 {[%clk 0:01:21]} 56. Rd8+ {[%clk 0:00:31]}  Kc4 {[%clk 0:01:21]} 57. Ra8 {[%clk 0:00:19]}  c2 {[%clk 0:01:18]} 58. Ke5 {[%clk 0:00:19]}  Rd1 {[%clk 0:01:16]} 59. Rc8+ {[%clk 0:00:19]}  Kd3 {[%clk 0:01:15]} 60. Rd8+ {[%clk 0:00:16]}  Ke2 {[%clk 0:01:15]} 61. Re8 {[%clk 0:00:16]}  c1=Q {[%clk 0:01:15]} 62. Kf5+ {[%clk 0:00:17]}  Kf3 {[%clk 0:01:15]} 63. Rf8 {[%clk 0:00:16]}  Qf4+ {[%clk 0:01:13]} 64. Kg6 {[%clk 0:00:17]}  Qxf8 {[%clk 0:01:13]} 65. Kh7 {[%clk 0:00:17]}  Qf6 {[%clk 0:01:12]} 66. Kg8 {[%clk 0:00:18]}  Rd8+ {[%clk 0:01:13]} 67. Kh7 {[%clk 0:00:18]}  Rh8# {[%clk 0:01:13]} 0-1


[Site "https://www.chess.com"]

[Event "Titled Tuesday Blitz June 6 Early 2023"]
[White "Nikologorsky, Matfei"]
[Black "Perez, Maximiliano"]
[WhiteFideId "24102474"]
[BlackFideId "117234"]
[WhiteElo "2153"]
[BlackElo "2334"]
[Result "1-0"]
[Round "1"]
[TimeControl "180+2"]
[Date "2023.06.06"]
[WhiteClock "0:00:19"]
[BlackClock "0:00:06"]
[Board "131"]

1. e4 {[%clk 0:02:55]}  c5 {[%clk 0:03:00]} 2. Nf3 {[%clk 0:02:55]}  Nc6 {[%clk 0:03:00]} 3. d4 {[%clk 0:02:54]}  cxd4 {[%clk 0:03:01]} 4. Nxd4 {[%clk 0:02:54]}  e5 {[%clk 0:03:02]} 5. Nb3 {[%clk 0:02:46]}  Nf6 {[%clk 0:03:01]} 6. Bd3 {[%clk 0:02:42]}  d5 {[%clk 0:02:59]} 7. exd5 {[%clk 0:02:42]}  Nxd5 {[%clk 0:02:58]} 8. O-O {[%clk 0:02:41]}  Be7 {[%clk 0:02:57]} 9. Bd2 {[%clk 0:02:34]}  O-O {[%clk 0:02:54]} 10. Nc3 {[%clk 0:02:34]}  Be6 {[%clk 0:02:52]} 11. Nxd5 {[%clk 0:02:27]}  Bxd5 {[%clk 0:02:53]} 12. Qe2 {[%clk 0:02:26]}  f5 {[%clk 0:02:49]} 13. Bc4 {[%clk 0:02:25]}  Kh8 {[%clk 0:02:45]} 14. Rad1 {[%clk 0:02:24]}  Bxc4 {[%clk 0:02:38]} 15. Qxc4 {[%clk 0:02:22]}  Rc8 {[%clk 0:02:36]} 16. Qa4 {[%clk 0:02:07]}  a6 {[%clk 0:02:34]} 17. Be3 {[%clk 0:01:58]}  Qe8 {[%clk 0:02:33]} 18. Bb6 {[%clk 0:01:51]}  f4 {[%clk 0:02:21]} 19. f3 {[%clk 0:01:36]}  Qg6 {[%clk 0:02:00]} 20. c3 {[%clk 0:01:28]}  Bd8 {[%clk 0:01:51]} 21. Bf2 {[%clk 0:01:24]}  Qc2 {[%clk 0:01:45]} 22. Rd2 {[%clk 0:01:23]}  Qf5 {[%clk 0:01:42]} 23. Rfd1 {[%clk 0:01:06]}  Be7 {[%clk 0:01:40]} 24. Nc5 {[%clk 0:01:04]}  Bxc5 {[%clk 0:01:39]} 25. Bxc5 {[%clk 0:01:03]}  Rfe8 {[%clk 0:01:39]} 26. Qe4 {[%clk 0:01:01]}  Qxe4 {[%clk 0:01:32]} 27. fxe4 {[%clk 0:01:02]}  Red8 {[%clk 0:01:19]} 28. Kf2 {[%clk 0:00:58]}  Rxd2+ {[%clk 0:01:16]} 29. Rxd2 {[%clk 0:00:59]}  Rd8 {[%clk 0:01:16]} 30. Rd5 {[%clk 0:00:45]}  Kg8 {[%clk 0:01:12]} 31. Kf3 {[%clk 0:00:41]}  Kf7 {[%clk 0:01:12]} 32. Kg4 {[%clk 0:00:41]}  Ke6 {[%clk 0:01:11]} 33. c4 {[%clk 0:00:35]}  b5 {[%clk 0:01:01]} 34. cxb5 {[%clk 0:00:29]}  axb5 {[%clk 0:01:02]} 35. Rxd8 {[%clk 0:00:29]}  Nxd8 {[%clk 0:01:02]} 36. b3 {[%clk 0:00:30]}  g6 {[%clk 0:00:54]} 37. a4 {[%clk 0:00:28]}  bxa4 {[%clk 0:00:53]} 38. bxa4 {[%clk 0:00:29]}  h5+ {[%clk 0:00:50]} 39. Kg5 {[%clk 0:00:28]}  Kf7 {[%clk 0:00:50]} 40. Bd6 {[%clk 0:00:21]}  Ne6+ {[%clk 0:00:39]} 41. Kh6 {[%clk 0:00:21]}  Kf6 {[%clk 0:00:39]} 42. a5 {[%clk 0:00:20]}  Nd4 {[%clk 0:00:34]} 43. a6 {[%clk 0:00:20]}  Nc6 {[%clk 0:00:35]} 44. Bb8 {[%clk 0:00:19]}  g5 {[%clk 0:00:27]} 45. Kxh5 {[%clk 0:00:18]}  Nxb8 {[%clk 0:00:17]} 46. a7 {[%clk 0:00:19]}  Nd7 {[%clk 0:00:17]} 47. a8=Q {[%clk 0:00:19]}  Nc5 {[%clk 0:00:16]} 48. Qc6+ {[%clk 0:00:19]}  Ne6 {[%clk 0:00:17]} 49. h4 {[%clk 0:00:19]}  gxh4 {[%clk 0:00:17]} 50. Kxh4 {[%clk 0:00:19]}  Kf7 {[%clk 0:00:17]} 51. Kg4 {[%clk 0:00:20]}  Kf6 {[%clk 0:00:18]} 52. Qd6 {[%clk 0:00:19]}  Kf7 {[%clk 0:00:16]} 53. Kf5 {[%clk 0:00:20]}  Nd4+ {[%clk 0:00:09]} 54. Kxe5 {[%clk 0:00:20]}  f3 {[%clk 0:00:09]} 55. gxf3 {[%clk 0:00:20]}  Nxf3+ {[%clk 0:00:09]} 56. Kf4 {[%clk 0:00:20]}  Nh4 {[%clk 0:00:09]} 57. Qh6 {[%clk 0:00:19]}  Ng6+ {[%clk 0:00:09]} 58. Kg5 {[%clk 0:00:20]}  Ne7 {[%clk 0:00:09]} 59. e5 {[%clk 0:00:19]}  Ke8 {[%clk 0:00:09]} 60. e6 {[%clk 0:00:20]}  Nd5 {[%clk 0:00:07]} 61. Qg7 {[%clk 0:00:19]}  Nb6 {[%clk 0:00:05]} 62. Qf7+ {[%clk 0:00:19]}  Kd8 {[%clk 0:00:06]} 63. e7+ {[%clk 0:00:19]} 1-0


[Site "https://www.chess.com"]